bitfinex/quotes_ETHUSD_20241109
["timestamp","ask_amount","ask_price","bid_price","bid_amount"]
[1731159644690,0.7694,3047.4,3047.3,0.13859304]
[1731159645143,0.7694,3047.4,3047.0,0.06562642]
[1731159645450,0.0391057,3047.5,3047.1,0.13873999]
[1731159645656,0.0391057,3047.5,3047.2,0.06562367]
[1731159645982,0.0391057,3047.5,3047.3,0.13858478]
[1731159646305,0.0391057,3047.5,3046.9,0.06562375]
[1731159646447,0.0391057,3047.5,3047.4,0.13851131]
[1731159646967,0.0391057,3047.5,3046.9,0.06562375]
[1731159647167,0.0391057,3047.5,3047.0,0.13880521]
[1731159647350,0.0391057,3047.5,3047.1,0.06562368]
[1731159647557,0.0391057,3047.5,3047.2,0.13865825]
[1731159647758,0.0391057,3047.5,3047.3,0.06562226]
[1731159647970,0.0391057,3047.5,3047.4,0.13851131]
[1731159648143,0.0391057,3047.5,3047.0,3.0]
[1731159648339,0.0391057,3047.5,3047.1,0.64443858]
[1731159648581,0.0391057,3047.5,3047.1,0.78336071]
[1731159649344,0.0391057,3047.5,3047.2,2.72253761]
[1731159649622,0.0391057,3047.5,3047.3,0.20357133]
[1731159650085,0.0391057,3047.5,3047.3,0.20357185]
[1731159650267,0.0391057,3047.5,3047.4,0.85695095]
[1731159650782,0.0391057,3047.5,3047.4,0.9948547]
[1731159651445,0.0391057,3047.5,3047.4,0.4448547]
[1731159652041,0.0391057,3047.5,3047.4,0.13790375]
[1731159652578,0.0391057,3047.5,3047.2,0.1434]
[1731159652876,0.0391057,3047.5,3047.3,0.13804432]
[1731159653250,0.0391057,3047.5,3047.1,0.65519356]
[1731159653450,0.0391057,3047.5,3047.4,0.13799485]
[1731159653649,0.0391057,3047.5,3047.1,0.65519356]
[1731159653848,0.0391057,3047.5,3047.4,0.13799485]
[1731159654182,0.7577,3047.4,3047.2,0.36551936]
[1731159654388,0.7577,3047.4,3047.2,0.43114383]
[1731159654626,0.7577,3047.4,3047.2,0.36551936]
[1731159655189,0.7577,3047.4,3047.3,0.06562482]
[1731159655348,0.7577,3047.4,3047.2,0.36551936]
[1731159655685,0.7577,3047.4,3047.2,0.43114507]
[1731159655844,0.7577,3047.4,3047.2,0.36551936]
[1731159656044,0.0391057,3047.5,3047.3,0.55]
[1731159656259,0.0391057,3047.5,3047.2,0.36551936]
[1731159657894,0.0391057,3047.5,3047.1,0.65519356]
[1731159658189,0.7554,3047.4,3047.1,0.65519356]
[1731159658686,0.7554,3047.4,3046.8,0.34464654]
[1731159658982,0.7554,3047.4,3046.9,0.06563235]
[1731159660451,0.7554,3047.4,3046.8,0.66259389]
[1731159661278,0.7554,3047.4,3046.6,0.342242]
[1731159661798,0.7554,3047.4,3046.7,0.13858759]
[1731159662651,0.7554,3047.4,3046.8,0.06563967]
[1731159662850,0.7554,3047.4,3046.7,0.13858759]
[1731159663090,0.7554,3047.4,3046.9,0.13844064]
[1731159663266,0.7554,3047.4,3046.8,0.13856591]
[1731159663584,0.7554,3047.4,3046.9,0.13849243]
[1731159664713,0.7554,3047.4,3047.0,0.06562935]
[1731159665013,0.7554,3047.4,3047.1,0.13834549]
[1731159665507,0.7554,3047.4,3046.8,0.34808079]
[1731159665701,0.7554,3047.4,3047.2,0.13803873]
[1731159665912,0.7554,3047.4,3046.8,0.34808079]
[1731159666368,0.7554,3047.4,3046.9,0.13825911]
[1731159666573,0.7554,3047.4,3046.7,0.40792547]
[1731159667214,0.7554,3047.4,3046.8,0.13833258]
[1731159668192,0.008879,3046.9,3046.8,0.13833258]
[1731159668475,0.008879,3046.9,3046.7,0.40792547]
[1731159668680,0.008879,3046.9,3046.8,0.13833258]
[1731159669093,0.008879,3046.9,3046.7,0.40792546]
[1731159669295,0.008879,3046.9,3046.8,0.13833258]
[1731159669704,0.008879,3046.9,3046.7,0.40792546]
[1731159669891,0.008879,3046.9,3046.8,0.13833258]
[1731159670294,0.008879,3046.9,3046.7,0.4079255]
[1731159670546,0.811879,3046.9,3046.8,0.13833258]
[1731159670832,0.811879,3046.9,3046.7,0.34228894]
[1731159671125,0.811879,3046.9,3046.8,0.13833258]
[1731159671496,0.811879,3046.9,3046.7,0.34228894]
[1731159671697,0.811879,3046.9,3046.8,0.13833258]
[1731159672227,0.811879,3046.9,3046.8,0.13835041]
[1731159672415,0.811879,3046.9,3046.7,0.34228894]
[1731159672611,0.811879,3046.9,3046.8,0.13835041]
[1731159672812,0.811879,3046.9,3046.7,0.34228894]
[1731159673047,0.811879,3046.9,3046.8,0.13835041]
[1731159673547,0.811879,3046.9,3046.7,0.34228894]
[1731159673716,0.811879,3046.9,3046.8,0.13835041]
[1731159674052,0.811879,3046.9,3045.9,0.6548882]
[1731159674212,0.811879,3046.9,3045.9,0.72054286]
[1731159674412,0.811879,3046.9,3046.0,0.13898733]
[1731159675039,3.0,3046.7,3046.0,0.13898733]
[1731159675353,0.803,3046.6,3045.6,0.34264593]
[1731159675513,0.803,3046.6,3045.2,0.34245225]
[1731159675714,0.803,3046.6,3045.7,0.13946496]
[1731159675908,0.803,3046.6,3045.2,1.35281263]
[1731159676121,0.803,3046.4,3045.3,0.06566631]
[1731159676327,0.803,3046.4,3045.3,0.13975913]
[1731159677047,0.803,3046.3,3045.3,0.13975913]
[1731159677634,0.803,3046.3,3045.2,0.34245225]
[1731159678117,0.803,3046.3,3045.3,0.13979605]
[1731159678450,0.803,3046.1,3045.2,0.34245225]
[1731159678815,0.803,3046.1,3045.3,0.13979605]
[1731159679436,3.803,3046.1,3045.3,0.13979605]
[1731159679636,0.803,3046.0,3045.3,0.13979605]
[1731159679884,0.803,3046.0,3044.8,0.34272567]
[1731159680097,0.803,3045.8,3044.8,0.34272567]
[1731159680300,0.803,3045.8,3044.9,0.1400903]
[1731159680301,0.803,3045.7,3044.9,0.1400903]
[1731159680679,0.803,3045.7,3044.8,0.34272567]
[1731159681004,0.803,3045.7,3044.9,0.14000238]
[1731159681663,0.803,3045.7,3044.7,0.06568359]
[1731159681903,0.803,3045.7,3045.0,0.13996447]
[1731159682062,0.803,3045.7,3044.7,0.06568359]
[1731159682262,0.803,3045.7,3045.1,0.13989091]
[1731159682473,0.803,3045.7,3044.7,0.06568359]
[1731159682776,0.803,3045.7,3044.7,0.45626077]
[1731159682973,0.803,3045.7,3044.8,0.40087715]
[1731159683201,0.803,3045.7,3044.8,0.53722411]
[1731159683402,0.803,3045.7,3044.9,0.06567046]
[1731159683616,0.803,3045.7,3045.0,0.13619982]
[1731159683830,0.803,3045.7,3044.8,0.40087715]
[1731159684118,0.803,3045.7,3044.9,0.20194392]
[1731159684613,0.803,3045.7,3044.9,0.13627339]
[1731159684813,0.803,3045.7,3044.6,0.68657313]
[1731159685022,0.803,3045.7,3044.7,0.20220135]
[1731159685181,0.803,3045.6,3044.7,0.13652301]
[1731159685388,0.803,3045.6,3044.8,0.06567915]
[1731159685582,0.803,3045.6,3044.9,0.13741655]
[1731159685778,0.803,3045.6,3044.7,0.06567913]
[1731159686079,0.803,3045.6,3044.8,0.28089016]
[1731159686279,0.803,3045.6,3044.9,0.41163893]
[1731159686712,0.803,3045.6,3045.0,0.13714877]
[1731159687014,0.803,3045.6,3045.1,0.06567053]
[1731159687179,0.803,3045.6,3045.2,0.13612586]
[1731159687680,0.803,3045.6,3045.0,0.06567054]
[1731159687879,0.803,3045.6,3045.3,0.1360523]
[1731159688187,0.803,3045.6,3045.4,0.13597876]
[1731159688384,0.803,3045.6,3045.0,0.06567054]
[1731159688915,0.803,3045.6,3045.1,0.13619942]
[1731159689089,0.803,3045.6,3045.2,0.06566904]
[1731159689518,0.803,3045.6,3045.3,0.1360523]
[1731159690019,0.803,3045.6,3045.4,0.13597876]
[1731159690205,0.803,3045.6,3045.2,0.06566904]
[1731159690390,0.803,3045.6,3045.3,0.1360523]
[1731159690793,0.803,3045.6,3045.2,0.06566904]
[1731159691019,0.803,3045.6,3045.3,0.13662536]
[1731159691217,0.803,3045.6,3045.2,0.06566904]
[1731159691416,0.803,3045.6,3045.3,0.13662536]
[1731159691623,0.803,3045.6,3045.2,0.06566904]
[1731159691825,0.803,3045.6,3045.3,0.13673884]
[1731159692197,0.803,3045.6,3045.2,0.06566904]
[1731159692431,0.803,3045.6,3045.3,0.13673884]
[1731159692632,0.803,3045.6,3045.2,0.06566904]
[1731159692838,0.803,3045.6,3045.3,0.13673884]
[1731159693034,0.8156,3046.4,3045.2,0.06566904]
[1731159693341,0.8156,3046.4,3045.4,3.0]
[1731159693650,0.8156,3046.4,3045.5,0.84906603]
[1731159693800,0.8156,3046.4,3045.5,0.78341049]
[1731159694237,0.8156,3046.4,3045.6,0.06565551]
[1731159694410,0.8156,3046.4,3045.7,0.13570966]
[1731159694607,0.8156,3046.4,3045.8,0.06565551]
[1731159694826,0.8156,3046.4,3045.9,0.13632465]
[1731159695237,0.8156,3046.4,3045.6,0.06565551]
[1731159695438,0.8156,3046.4,3045.7,0.13570966]
[1731159695743,0.8156,3046.4,3045.8,0.06565552]
[1731159696255,0.8156,3046.4,3045.9,0.13617337]
[1731159696707,0.8156,3046.4,3045.5,0.64752828]
[1731159696909,0.8156,3046.4,3046.0,0.1354605]
[1731159697111,0.8156,3046.4,3045.6,0.36475283]
[1731159697309,0.8156,3046.4,3046.1,0.13599273]
[1731159697511,0.8156,3046.4,3045.6,0.36475283]
[1731159697712,0.8156,3046.4,3046.2,0.1353085]
[1731159697914,0.8156,3046.4,3045.3,0.1434]
[1731159698305,0.8156,3046.4,3045.4,0.13589672]
[1731159698731,0.8156,3046.4,3045.5,0.06566272]
[1731159699106,0.8156,3046.4,3045.6,0.51990207]
[1731159699322,0.8156,3046.4,3045.7,0.06565306]
[1731159699714,0.8156,3046.4,3045.8,0.13571977]
[1731159700036,0.8156,3046.4,3045.9,0.06565307]
[1731159700241,0.8156,3046.4,3046.0,0.13557272]
[1731159700650,0.8156,3046.4,3045.7,0.06565309]
[1731159700949,0.8156,3046.4,3045.8,0.13571977]
[1731159701157,0.8156,3046.4,3045.9,0.38578932]
[1731159701510,0.8156,3046.4,3046.0,0.13545553]
[1731159702446,0.8156,3046.8,3046.0,0.27885553]
[1731159702751,0.8156,3046.8,3046.1,0.06564508]
[1731159703044,0.8156,3046.8,3046.2,0.1353085]
[1731159703219,0.7656,3046.8,3046.3,0.06564476]
[1731159703545,0.7656,3046.8,3046.4,0.13516149]
[1731159704161,0.7656,3046.8,3046.0,0.1434]
[1731159704456,0.008879,3046.9,3046.2,2.72253761]
[1731159704774,0.008879,3046.9,3046.3,3.20087334]
[1731159705358,0.008879,3046.9,3046.3,0.13523499]
[1731159706337,0.7885,3046.8,3046.4,0.0656474]
[1731159706863,0.7885,3046.8,3046.5,0.135088]
[1731159707160,0.7885,3046.8,3046.1,0.06564218]
[1731159707365,0.7885,3046.8,3046.6,0.13501451]
[1731159707655,0.7885,3046.8,3046.7,0.13487452]
[1731159707861,0.7885,3046.8,3046.2,0.32090422]
[1731159708044,0.008879,3046.9,3046.3,0.20081071]
[1731159708244,0.008879,3046.9,3046.6,3.0]
[1731159708422,0.008879,3046.9,3046.7,0.06563034]
[1731159708623,0.008879,3046.9,3046.8,0.06562961]
[1731159709334,0.008879,3046.9,3046.8,0.20039213]
[1731159709529,0.008879,3046.9,3046.8,0.52043134]
[1731159709730,0.008879,3046.9,3046.8,3.43636895]
[1731159709929,0.008879,3046.9,3046.8,0.71383134]
[1731159710228,0.008879,3046.9,3046.8,0.39379213]
[1731159711260,0.008879,3046.9,3046.8,0.13476252]
[1731159711467,0.008879,3046.9,3046.6,3.0]
[1731159711468,0.008879,3046.9,3046.6,3.1934]
[1731159711961,0.008879,3046.9,3046.7,0.13483601]
[1731159712128,0.008879,3046.9,3046.7,0.20046569]
[1731159712323,0.008879,3046.9,3046.8,0.33938657]
[1731159712856,0.008879,3046.9,3046.8,0.47414909]
[1731159714561,0.008879,3046.9,3046.8,1.20012235]
[1731159714868,0.008879,3046.9,3046.8,4.6004328]
[1731159715026,0.008879,3046.9,3046.8,7.6004328]
[1731159719363,0.008879,3046.9,3046.8,7.66605854]
[1731159728747,0.008879,3046.9,3046.8,7.0504328]
[1731159729067,0.008879,3046.9,3046.8,4.13449519]
[1731159729648,0.008879,3046.9,3046.8,4.20012404]
[1731159729846,0.008879,3046.9,3046.8,0.79510862]
[1731159730048,0.008879,3046.9,3046.8,0.13476252]
[1731159730269,0.762279,3046.9,3046.2,2.72253761]
[1731159730646,0.762279,3046.9,3046.6,0.64564785]
[1731159731149,0.762279,3046.9,3046.7,0.13097416]
[1731159735558,0.762279,3046.9,3046.7,0.48745402]
[1731159740403,0.762279,3046.9,3046.7,0.13097416]
[1731159745001,0.762279,3046.9,3046.4,0.34231331]
[1731159745203,0.762279,3046.9,3046.8,0.13093161]
[1731159745512,0.762279,3046.9,3046.4,0.34231331]
[1731159745713,0.762279,3046.9,3046.8,0.13216681]
[1731159746210,0.762279,3046.9,3046.8,0.13125359]
[1731159746703,0.762279,3046.9,3046.4,0.34231331]
[1731159746882,0.762279,3046.9,3046.8,0.13229598]
[1731159747213,0.762279,3046.9,3046.4,0.74988571]
[1731159747422,0.762279,3046.9,3046.8,0.13229598]
[1731159747598,0.762279,3046.9,3046.4,0.34231331]
[1731159747793,0.762279,3046.9,3046.8,0.13229598]
[1731159748011,0.762279,3046.9,3046.4,0.34231331]
[1731159748227,0.762279,3046.9,3046.8,0.13229598]
[1731159748436,0.762279,3046.9,3046.4,0.34231331]
[1731159748589,0.762279,3046.9,3046.8,0.13229598]
[1731159748930,0.762279,3046.9,3046.4,0.34231331]
[1731159749095,0.762279,3046.9,3046.8,0.13229598]
[1731159749422,0.762279,3046.9,3046.4,0.74988571]
[1731159749619,0.762279,3046.9,3046.8,0.13229598]
[1731159749817,0.762279,3046.9,3046.4,0.74988571]
[1731159749986,0.762279,3046.9,3046.8,0.13229598]
[1731159750324,0.762279,3046.9,3046.5,0.06564641]
[1731159750502,0.762279,3046.9,3046.8,0.1323463]
[1731159750819,0.762279,3046.9,3046.5,0.06564641]
[1731159751146,0.762279,3046.9,3046.8,0.13229699]
[1731159751332,0.762279,3046.9,3046.6,0.44549378]
[1731159751490,0.762279,3046.9,3046.8,0.13229699]
[1731159751836,0.762279,3046.9,3046.6,0.31304973]
[1731159751989,0.762279,3046.9,3046.8,0.13229699]
[1731159752186,0.762279,3046.9,3046.4,0.34231331]
[1731159752387,0.762279,3046.9,3046.8,0.13229699]
[1731159752596,0.762279,3046.9,3046.4,0.34231331]
[1731159752885,0.762279,3046.9,3046.8,0.12843782]
[1731159753091,0.762279,3046.9,3045.6,1.06914768]
[1731159753331,1.26536291,3046.9,3045.6,2.32563159]
[1731159753630,0.7863,3046.8,3045.7,0.12924679]
[1731159753930,0.7863,3046.6,3045.7,0.12924679]
[1731159755001,0.7863,3046.6,3045.7,3.12924679]
[1731159755500,0.7863,3046.6,3045.7,0.12924679]
[1731159757004,0.7963,3046.6,3045.7,0.12924679]
[1731159757375,0.01,3046.4,3045.7,0.12924679]
[1731159757564,0.7863,3046.2,3045.6,0.64264299]
[1731159757761,0.7863,3046.2,3045.1,0.68514191]
[1731159757979,0.7863,3046.2,3045.7,0.12861228]
[1731159758270,0.7863,3046.2,3045.3,0.66693129]
[1731159758786,0.7863,3046.2,3045.4,0.12883295]
[1731159761785,0.7863,3046.2,3045.1,0.68514191]
[1731159761990,0.7863,3046.2,3045.5,0.12875939]
[1731159762189,0.7863,3046.2,3045.2,0.66839699]
[1731159762371,0.7863,3046.2,3045.6,0.12868583]
[1731159762581,0.7863,3046.2,3045.2,0.66839699]
[1731159763003,0.7863,3046.2,3045.3,0.12890651]
[1731159763707,0.7963,3046.2,3045.3,0.12890651]
[1731159764460,0.7963,3046.2,3045.1,0.34246295]
[1731159764923,0.7963,3046.2,3045.2,0.12904642]
[1731159765108,0.7863,3046.2,3045.2,0.12904642]
[1731159768468,0.7863,3046.2,3045.4,0.1934]
[1731159768815,0.8243,3046.8,3046.1,3.0]
[1731159768965,0.8243,3046.8,3046.2,0.6378745]
[1731159769164,0.8243,3046.8,3046.2,0.7661757]
[1731159770109,0.8243,3046.8,3046.2,0.70052989]
[1731159773819,0.8243,3046.8,3046.3,0.06564603]
[1731159774126,0.8243,3046.8,3046.2,0.57222869]
[1731159774323,0.8243,3046.8,3046.3,0.39628059]
[1731159774641,0.8243,3046.8,3046.3,0.52474654]
[1731159779960,0.8243,3046.8,3046.3,0.59039337]
[1731159780337,0.8243,3046.8,3046.3,0.52474654]
[1731159786279,0.8243,3046.8,3046.3,0.12846595]
[1731159786821,0.8243,3046.8,3045.9,0.65261195]
[1731159787017,0.8243,3046.8,3046.4,0.12775521]
[1731159787217,0.8243,3046.8,3045.9,0.65261195]
[1731159787423,0.8243,3046.8,3046.5,0.12768171]
[1731159787753,0.8243,3046.8,3046.6,0.12760821]
[1731159787955,0.8243,3046.8,3045.9,0.65261195]
[1731159788155,0.8243,3046.8,3046.7,0.12753472]
[1731159788454,0.8243,3046.8,3045.9,0.65261195]
[1731159788655,0.8243,3046.8,3045.9,1.01787315]
[1731159788842,0.8243,3046.8,3046.0,0.19370144]
[1731159789163,0.8243,3046.8,3046.0,0.12804926]
[1731159791514,0.8243,3046.8,3046.0,0.19370144]
[1731159791766,0.8243,3046.8,3046.2,2.72228687]
[1731159791935,0.8243,3046.8,3046.3,0.35721481]
[1731159792320,0.8243,3046.8,3046.4,0.1277262]
[1731159795722,0.8243,3046.8,3046.4,0.76979109]
[1731159801475,0.8243,3046.8,3046.4,2.02558892]
[1731159802763,0.8243,3046.8,3046.4,0.76979109]
[1731159803860,0.8243,3046.8,3046.4,2.02558892]
[1731159805189,0.8243,3046.8,3046.4,0.76979109]
[1731159807696,0.8243,3046.8,3046.4,0.64206489]
[1731159807991,0.8243,3046.8,3046.0,0.34235211]
[1731159808746,0.8243,3046.8,3046.3,0.65482789]
[1731159809181,0.8243,3046.8,3046.4,0.12813264]
[1731159809687,0.8243,3046.8,3045.3,3.0]
[1731159809893,0.8243,3046.8,3045.6,0.34243908]
[1731159810349,0.8243,3046.8,3046.0,0.66879931]
[1731159810544,0.8243,3046.8,3045.7,0.1282757]
[1731159810750,0.7703,3046.7,3045.6,0.34243908]
[1731159810949,0.7703,3046.7,3045.8,0.12891598]
[1731159811150,0.7703,3046.7,3045.6,0.34243908]
[1731159811363,0.69465332,3046.8,3045.6,0.34243908]
[1731159811364,0.7703,3046.5,3045.6,0.34243908]
[1731159811600,0.7703,3046.5,3045.7,0.12916529]
[1731159812466,0.7703,3046.3,3045.7,0.12916529]
[1731159812659,0.7703,3046.3,3045.0,1.02916618]
[1731159812966,0.7703,3046.3,3045.0,1.37167627]
[1731159812967,0.68465332,3046.3,3045.0,1.37167627]
[1731159813294,0.7703,3046.2,3045.1,0.1297203]
[1731159813464,0.68465332,3046.2,3045.1,0.1297203]
[1731159813813,0.7703,3046.1,3045.0,0.68518946]
[1731159815310,0.7703,3046.1,3045.1,3.58476754]
[1731159815462,0.7703,3046.1,3045.2,0.71851973]
[1731159815806,0.7703,3046.1,3045.3,2.78751139]
[1731159816015,0.68465332,3046.8,3045.3,2.78751139]
[1731159816016,0.7703,3046.8,3045.7,3.0]
[1731159816370,0.7703,3046.8,3045.8,0.06566061]
[1731159816573,0.7703,3046.8,3045.8,0.19449296]
[1731159816905,0.7703,3046.8,3045.9,0.3194493]
[1731159817265,0.7703,3046.8,3046.0,0.12797872]
[1731159817465,0.69465332,3047.3,3046.0,0.12797872]
[1731159817466,0.7703,3046.4,3046.0,0.12797872]
[1731159820882,0.008879,3046.5,3046.0,0.12797872]
[1731159821299,0.008879,3046.5,3045.4,3.1934]
[1731159821596,0.008879,3046.5,3045.5,0.63058174]
[1731159822012,0.008879,3046.5,3045.5,0.75970191]
[1731159822429,0.008879,3046.5,3045.5,1.43188147]
[1731159822747,0.008879,3046.5,3045.5,0.75970191]
[1731159822884,0.008879,3046.5,3045.5,0.12912017]
[1731159823280,0.008879,3046.5,3045.2,0.34245445]
[1731159823480,0.008879,3046.5,3045.6,0.12837668]
[1731159823706,0.008879,3046.5,3045.2,0.34245445]
[1731159823911,0.7703,3046.4,3045.7,0.12898156]
[1731159824120,0.7703,3046.4,3045.2,0.34245445]
[1731159824317,0.7703,3046.4,3045.8,0.12817101]
[1731159824519,0.7703,3046.4,3045.2,0.34245445]
[1731159824720,0.7703,3046.4,3045.3,0.33424544]
[1731159824886,0.7703,3046.4,3045.3,0.46352127]
[1731159825783,0.008879,3046.5,3045.3,0.12927583]
[1731159825784,0.55,3046.3,3045.3,0.12927583]
[1731159826023,0.7703,3046.2,3045.3,0.12927583]
[1731159829300,0.55,3046.1,3045.3,0.12927583]
[1731159829510,0.8219,3046.0,3045.3,0.12927583]
[1731159833424,0.8219,3046.0,3045.2,0.34245445]
[1731159833618,0.8219,3046.0,3045.4,0.12877605]
[1731159833821,0.8219,3046.0,3045.2,0.34245445]
[1731159834017,0.8219,3046.0,3045.5,0.12870249]
[1731159834217,0.8219,3046.0,3045.2,0.34245445]
[1731159834420,0.8219,3046.0,3045.6,0.1295672]
[1731159834720,0.8219,3046.0,3045.2,0.34245445]
[1731159835104,0.8219,3046.0,3045.3,0.12978796]
[1731159840365,0.8219,3046.0,3045.3,1.55958043]
[1731159844768,0.8219,3046.0,3045.5,1.25688021]
[1731159844919,0.8219,3046.0,3045.6,1.25688021]
[1731159845276,0.8219,3046.0,3045.6,1.38617764]
[1731159848261,0.8219,3046.0,3045.6,0.12929743]
[1731159848570,0.8219,3046.0,3045.4,1.66500667]
[1731159848571,0.8219,3046.0,3045.4,1.59933978]
[1731159848765,0.8219,3046.0,3045.7,0.12856605]
[1731159849003,0.8219,3046.0,3045.5,0.18379189]
[1731159849217,0.8219,3046.0,3045.8,0.12837587]
[1731159849512,0.8219,3046.0,3045.4,0.34245957]
[1731159849676,0.8219,3046.0,3045.9,0.12860782]
[1731159849864,0.8219,3046.0,3045.4,0.34245957]
[1731159850057,0.8219,3046.0,3045.9,0.12860782]
[1731159850300,0.8219,3046.0,3045.4,0.34245957]
[1731159850598,0.8219,3046.0,3045.9,0.1281154]
[1731159850799,0.8219,3046.0,3045.4,0.34245957]
[1731159851013,0.8219,3046.0,3045.9,0.1292022]
[1731159851193,0.8219,3046.0,3045.4,0.34245957]
[1731159851393,0.8219,3046.0,3045.5,0.12947901]
[1731159851568,0.8219,3046.0,3045.4,0.34245957]
[1731159851969,0.8219,3046.0,3045.5,0.1288159]
[1731159855274,0.8219,3046.0,3045.6,0.17281557]
[1731159855473,0.8219,3046.0,3045.6,0.30172697]
[1731159857081,0.8219,3046.0,3045.6,1.55860718]
[1731159857511,0.8219,3046.0,3045.6,0.30172697]
[1731159857723,0.8219,3046.0,3045.6,0.1289114]
[1731159858101,0.8219,3046.0,3045.4,1.59933978]
[1731159858647,0.8219,3046.0,3045.5,0.12898496]
[1731159859996,0.8219,3046.0,3045.6,1.25688021]
[1731159860198,0.8219,3046.0,3045.8,1.25688021]
[1731159860900,0.8219,3046.0,3045.9,0.12864592]
[1731159861420,5.2853036,3047.1,3045.9,0.12864592]
[1731159861421,0.7946,3046.9,3045.9,0.12864592]
[1731159861602,0.7946,3046.9,3046.1,1.25688021]
[1731159862194,0.7946,3046.9,3046.2,0.12850054]
[1731159863225,0.7946,3046.9,3046.3,1.25688021]
[1731159863598,0.7946,3046.9,3046.3,1.38521779]
[1731159864617,0.7946,3046.9,3046.5,1.25688021]
[1731159865145,0.7946,3046.9,3046.7,1.25688021]
[1731159865494,0.7946,3046.9,3046.8,0.12902419]
[1731159865724,0.7946,3047.4,3046.7,1.25688021]
[1731159866033,0.7946,3047.4,3046.8,0.12798226]
[1731159869824,0.7946,3047.4,3046.5,1.66808021]
[1731159870021,0.7946,3047.4,3046.9,0.12790876]
[1731159870196,0.7946,3047.4,3046.9,1.38478897]
[1731159870543,0.7946,3047.4,3046.9,0.12790876]
[1731159870887,0.7946,3047.4,3046.2,0.65262239]
[1731159870888,0.7946,3047.4,3046.2,1.25688021]
[1731159871139,0.7946,3047.4,3047.0,0.12781286]
[1731159871450,0.7946,3047.4,3046.2,1.25688021]
[1731159871451,0.8093,3047.2,3046.2,1.25688021]
[1731159871761,0.8093,3047.2,3047.1,0.12747545]
[1731159871911,0.8093,3047.2,3046.2,1.25688021]
[1731159872110,0.8093,3047.2,3047.1,0.12747545]
[1731159872306,0.8093,3047.2,3046.2,1.25688021]
[1731159872547,0.8093,3047.2,3046.1,1.07930323]
[1731159872548,0.8093,3047.2,3047.1,0.12747545]
[1731159872750,0.8093,3047.2,3046.4,1.25688021]
[1731159873357,0.8093,3047.2,3046.5,0.12791641]
[1731159873644,0.8093,3047.2,3046.6,1.66808021]
[1731159874059,0.8093,3047.2,3046.6,1.79592311]
[1731159874355,0.8093,3047.2,3046.6,0.1278429]
[1731159874707,0.8093,3047.2,3046.4,1.66808021]
[1731159874910,0.8093,3047.2,3046.7,0.1277694]
[1731159875110,0.8093,3047.2,3046.4,2.15825007]
[1731159875344,0.8093,3047.2,3046.8,0.12769591]
[1731159875545,0.8093,3047.2,3046.4,2.15825007]
[1731159875750,0.8093,3047.2,3046.9,0.12762241]
[1731159875922,0.8093,3047.2,3046.4,2.15825007]
[1731159876124,0.8093,3047.2,3047.0,0.12754893]
[1731159876458,0.8093,3047.2,3046.4,1.66808021]
[1731159876614,0.8093,3047.2,3047.1,0.12747545]
[1731159876970,0.8093,3047.2,3046.4,1.25688021]
[1731159877113,0.8093,3047.2,3047.1,0.12747545]
[1731159877614,0.8093,3047.2,3046.4,1.25688021]
[1731159877967,0.8093,3047.2,3046.5,0.12791641]
[1731159881035,0.8093,3047.2,3046.6,1.25688021]
[1731159881363,0.8093,3047.2,3046.6,1.38472311]
[1731159881867,0.8093,3047.2,3046.6,1.79592311]
[1731159883059,0.8093,3047.2,3046.6,0.1278429]
[1731159883265,0.8093,3047.2,3046.4,1.84145278]
[1731159883425,0.8093,3047.2,3046.7,0.1277694]
[1731159883622,0.8093,3047.2,3046.4,1.84145278]
[1731159883850,0.8093,3047.2,3046.5,0.12791641]
[1731159886795,0.8093,3047.2,3046.1,1.01045267]
[1731159886975,0.8093,3047.2,3046.6,0.12428507]
[1731159887179,0.8319,3047.0,3046.1,1.01045267]
[1731159887363,0.8319,3047.0,3046.7,0.12422197]
[1731159887666,0.8319,3047.0,3046.8,0.12414848]
[1731159887865,0.8319,3047.0,3046.1,1.01045267]
[1731159888087,0.8319,3047.0,3046.9,0.12407498]
[1731159888249,0.8319,3047.0,3046.1,1.01045267]
[1731159888591,0.8319,3047.0,3046.9,0.12407498]
[1731159888798,0.8319,3047.0,3046.1,1.01045267]
[1731159889148,0.8319,3047.0,3046.2,0.12458953]
[1731159889658,0.8319,3046.8,3046.1,1.01045267]
[1731159889897,0.8319,3046.8,3046.1,0.66810323]
[1731159890240,0.8319,3046.8,3046.2,0.12458953]
[1731159890364,0.8319,3046.6,3046.2,0.12458953]
[1731159890563,0.8319,3046.4,3046.2,0.12458953]
[1731159890892,0.8319,3046.4,3046.3,0.12451601]
[1731159891053,0.8319,3046.4,3045.6,0.34243689]
[1731159891255,0.8319,3046.4,3046.3,0.12451601]
[1731159891562,0.8319,3046.4,3045.6,0.34243689]
[1731159891947,0.8319,3046.4,3045.7,0.1249572]
[1731159893351,0.8319,3046.4,3045.7,1.38183741]
[1731159893699,0.74999832,3046.4,3045.7,1.38183741]
[1731159893899,0.74999832,3046.4,3046.1,1.25688021]
[1731159894249,0.74999832,3046.4,3046.2,0.12458953]
[1731159895204,0.74999832,3046.4,3045.8,1.25688021]
[1731159895401,0.74999832,3046.4,3046.3,0.12456977]
[1731159895566,0.74999832,3046.4,3045.6,1.5993171]
[1731159895751,0.74999832,3046.4,3045.6,2.10855881]
[1731159895947,0.74999832,3046.4,3045.7,0.12501097]
[1731159897291,0.74999832,3046.4,3045.8,1.25688021]
[1731159897508,0.74999832,3046.4,3045.8,1.38181763]
[1731159898068,0.74999832,3046.4,3046.0,1.25688021]
[1731159898379,0.74999832,3046.4,3045.9,0.61796388]
[1731159898600,0.74999832,3046.4,3046.1,0.12471682]
[1731159898915,0.74999832,3046.4,3046.0,0.12479035]
[1731159899083,0.74999832,3046.4,3046.2,0.12464329]
[1731159899404,0.74999832,3046.4,3045.9,0.4931]
[1731159899610,0.74999832,3046.4,3046.3,0.12456977]
[1731159899765,0.74999832,3046.4,3045.9,0.4931]
[1731159899967,0.74999832,3046.4,3046.3,0.12456977]
[1731159900316,3.0,3047.3,3046.3,0.12456977]
[1731159900317,0.7645,3047.3,3046.3,0.12456977]
[1731159900765,1.25688021,3047.1,3046.3,0.12456977]
[1731159901111,0.7645,3046.8,3045.8,0.34238368]
[1731159901281,0.7645,3046.6,3046.4,0.12461343]